[Event "9th Bangabandhu Team Mixed 2021"]
[Site "Dhaka"]
[Date "2021.04.05"]
[Round "2.1"]
[White "Manon, Reja Neer"]
[Black "Rahman, Ziaur"]
[Result "0-1"]
[ECO "B95"]
[WhiteElo "2112"]
[BlackElo "2432"]
[Annotator "ChessBase"]
[PlyCount "64"]
[EventDate "2021.04.04"]
[EventType "team-tourn"]
[EventCountry "BAN"]
[SourceTitle "playchess.com"]
[Source "ChessBase"]
[SourceQuality "1"]
[TimeControl "5400+30"]

1. e4 {[%emt 0:00:00]} c5 {[%emt 0:00:00]} 2. Nf3 {[%emt 1:31:00]} d6 {[%emt 1:31:00]} 3. d4 {[%emt 0:00:30]} cxd4 {[%emt 0:00:00]} 4. Nxd4 {[%emt 0:00:00]} Nf6 {[%emt 0:00:00]} 5. Nc3 {[%emt 0:00:00]} a6 {[%emt 0:01:30]} 6. Bg5 {[%emt 0:00:00]} e6 {[%emt 0:00:30]} 7. g3 {[%emt 0:00:00]} Be7 {[%emt 0:00:30]} 8. Qd2 {[%emt 0:00:00]} Nbd7 {[%emt 0:00:00]} 9. Bg2 {[%emt 0:00:00]} h6 {[%emt 0:00:00]} 10. Bxf6 {[%emt 0:00:00]} Nxf6 {[%emt 0:00:00]} 11. O-O {[%emt 0:00:00]} O-O {[%emt 0:02:00]} 12. Rad1 {[%emt 0:04:30]} Qb6 {[%emt 0:00:00]} 13. Na4 {[%emt 0:00:00]} Qc7 {[%emt 0:00:00]} 14. Qb4 {[%emt 0:00:00]} b5 {[%emt 0:00:00]} 15. Nc3 {[%emt 0:01:30]} Rb8 {[%emt 0:02:00]} 16. a3 {[%emt 0:00:30]} d5 {[%emt 0:00:00]} 17. Qb3 {[%emt 0:00:00]} b4 {[%emt 0:01:00]} 18. axb4 {[%emt 0:00:00]} Rxb4 {[%emt 0:00:00]} 19. Qa2 {[%emt 0:01:30]} Bc5 {[%emt 0:01:00]} 20. Nb3 {[%emt 0:00:00]} dxe4 {[%emt 0:00:00]} 21. Rfe1 {[%emt 0:00:00]} e3 {[%emt 0:01:00]} 22. fxe3 {[%emt 0:00:00]} Ng4 {[%emt 0:00:30]} 23. Rd3 {[%emt 0:02:00]} Ne5 {[%emt 0:00:30]} 24. Rd2 {[%emt 0:00:00]} Be7 {[%emt 0:00:30]} 25. Nd1 {[%emt 0:01:00]} Bb7 {[%emt 0:00:00]} 26. e4 {[%emt 0:00:30]} Bg5 {[%emt 0:00:00]} 27. Rde2 {[%emt 0:00:00]} Rd8 {[%emt 0:00:00]} 28. Qa5 {[%emt 0:00:00]} Qxa5 {[%emt 0:00:00]} 29. Nxa5 {[%emt 0:00:00]} Ba8 {[%emt 0:02:30]} 30. c3 {[%emt 0:02:00]} Ra4 {[%emt 0:00:00]} 31. b4 {[%emt 0:00:00]} Ra3 {[%emt 0:00:00]} 32. Rc2 {[%emt 0:01:00]} Ra1 {[%emt 0:01:30]} 0-1

[Event "9th Bangabandhu Team Mixed 2021"]
[Site "Dhaka"]
[Date "2021.04.05"]
[Round "2.2"]
[White "Reefat, Bin-Sattar"]
[Black "Rahman, Syed Mahfuzur"]
[Result "1/2-1/2"]
[ECO "B20"]
[WhiteElo "2401"]
[BlackElo "2206"]
[Annotator "ChessBase"]
[PlyCount "94"]
[EventDate "2021.04.04"]
[EventType "team-tourn"]
[EventCountry "BAN"]
[SourceTitle "playchess.com"]
[Source "ChessBase"]
[SourceQuality "1"]
[TimeControl "5400+30"]

1. e4 {[%emt 0:00:00]} c5 {[%emt 0:00:00]} 2. b3 {[%emt 0:01:45]} Nc6 {[%emt 0:00:39]} 3. Bb2 {[%emt 0:00:02]} e5 {[%emt 0:03:16]} 4. Bb5 {[%emt 0:00:12]} d6 {[%emt 0:01:01]} 5. Bxc6+ {[%emt 0:01:03]} bxc6 {[%emt 0:00:02]} 6. Ne2 {[%emt 0:00:07]} Qh4 {[%emt 0:03:24]} 7. d3 {[%emt 0:36:35]} f5 {[%emt 0:11:01]} 8. exf5 {[%emt 0:05:16]} Nh6 {[%emt 0:05:22]} 9. Ng3 {[%emt 0:15:44]} Be7 {[%emt 0:04:55]} 10. Qf3 {[%emt 0:18:37]} Bd7 {[%emt 0:03:43]} 11. Qe4 {[%emt 0:00:00]} O-O {[%emt 0:01:23]} 12. Qxh4 {[%emt 0:00:59]} Bxh4 {[%emt 0:00:09]} 13. Nd2 {[%emt 0:00:12]} Nxf5 {[%emt 0:06:03]} 14. Nc4 {[%emt 0:03:05]} Rad8 {[%emt 0:27:51]} 15. O-O {[%emt 0:04:53]} Rfe8 {[%emt 0:10:18]} 16. Rae1 {[%emt 0:04:11]} g6 {[%emt 0:04:50]} 17. Nxf5 {[%emt 0:04:09]} Bxf5 {[%emt 0:00:08]} 18. Na5 {[%emt 0:00:08]} Rc8 {[%emt 0:04:24]} 19. Nc4 {[%emt 0:01:10]} Rcd8 {[%emt 0:01:42]} 20. Na5 {[%emt 0:00:32]} Rc8 {[%emt 0:00:19]} 21. Nc4 {[%emt 0:00:24]} Rcd8 {[%emt 0:01:28]} 22. g3 {[%emt 0:00:44]} Be7 {[%emt 0:05:12]} 23. f4 {[%emt 0:00:17]} exf4 {[%emt 0:00:19]} 24. Rxe7 {[%emt 0:00:34]} Rxe7 {[%emt 0:00:13]} 25. Bf6 {[%emt 0:00:03]} Kf7 {[%emt 0:02:14]} 26. Bxe7 {[%emt 0:00:05]} Kxe7 {[%emt 0:00:02]} 27. Rxf4 {[%emt 0:00:16]} Re8 {[%emt 0:01:17]} 28. Ne3 {[%emt 0:00:41]} Be6 {[%emt 0:01:11]} 29. Ra4 {[%emt 0:00:22]} Ra8 {[%emt 0:00:04]} 30. Kf2 {[%emt 0:00:44]} d5 {[%emt 0:01:36]} 31. d4 {[%emt 0:00:28]} cxd4 {[%emt 0:00:35]} 32. Rxd4 {[%emt 0:00:03]} Kd6 {[%emt 0:00:36]} 33. b4 {[%emt 0:00:43]} c5 {[%emt 0:00:27]} 34. bxc5+ {[%emt 0:00:04]} Kxc5 {[%emt 0:00:05]} 35. c3 {[%emt 0:00:15]} a5 {[%emt 0:00:38]} 36. h4 {[%emt 0:00:46]} Rb8 {[%emt 0:00:52]} 37. a4 {[%emt 0:01:06]} Rb1 {[%emt 0:00:25]} 38. Ke2 {[%emt 0:00:26]} Rc1 {[%emt 0:00:24]} 39. Kd2 {[%emt 0:00:11]} Rg1 {[%emt 0:00:08]} 40. g4 {[%emt 0:00:23]} Rh1 {[%emt 0:00:14]} 41. g5 {[%emt 0:00:12]} Rh2+ {[%emt 0:00:47]} 42. Ke1 {[%emt 0:02:41]} Rh3 {[%emt 0:00:59]} 43. Kd2 {[%emt 0:00:02]} Rh2+ {[%emt 0:00:23]} 44. Ke1 {[%emt 0:00:04]} Rh3 {[%emt 0:00:41]} 45. Kf2 {[%emt 0:00:49]} Rh2+ {[%emt 0:00:28]} 46. Ke1 {[%emt 0:00:50]} Rh3 {[%emt 0:00:20]} 47. Kd2 {[%emt 0:00:38]} Rh2+ {[%emt 0:00:11]} 1/2-1/2

[Event "9th Bangabandhu Team Mixed 2021"]
[Site "Dhaka"]
[Date "2021.04.05"]
[Round "2.3"]
[White "Rahman, Taibur"]
[Black "Mohammad Fahad, Rahman"]
[Result "1/2-1/2"]
[ECO "D52"]
[WhiteElo "2189"]
[BlackElo "2321"]
[Annotator "ChessBase"]
[PlyCount "106"]
[EventDate "2021.04.04"]
[EventType "team-tourn"]
[EventCountry "BAN"]
[SourceTitle "playchess.com"]
[Source "ChessBase"]
[SourceQuality "1"]
[TimeControl "5400+30"]

1. d4 {[%emt 0:00:12]} d5 {[%emt 0:00:00]} 2. c4 {[%emt 0:00:02]} c6 {[%emt 0:00:00]} 3. Nf3 {[%emt 0:00:04]} Nf6 {[%emt 0:00:00]} 4. Nc3 {[%emt 0:00:05]} e6 {[%emt 0:00:04]} 5. Bg5 {[%emt 0:00:04]} Nbd7 {[%emt 0:00:09]} 6. e3 {[%emt 0:00:12]} Qa5 {[%emt 0:00:04]} 7. Nd2 {[%emt 1:32:51]} Bb4 {[%emt 1:33:13]} 8. Rc1 {[%emt 0:00:00]} Ne4 {[%emt 0:00:00]} 9. Ndxe4 {[%emt 0:00:00]} dxe4 {[%emt 0:00:00]} 10. Bh4 {[%emt 0:00:00]} Qxa2 {[%emt 0:00:00]} 11. Qc2 {[%emt 0:00:00]} Nb6 {[%emt 0:00:00]} 12. Be2 {[%emt 0:00:00]} Na4 {[%emt 0:00:00]} 13. O-O {[%emt 0:00:00]} Bxc3 {[%emt 0:00:00]} 14. bxc3 {[%emt 0:00:00]} Nxc3 {[%emt 0:00:00]} 15. Qxc3 {[%emt 0:00:00]} Qxe2 {[%emt 0:00:00]} 16. Qa3 {[%emt 0:00:00]} f6 {[%emt 0:00:00]} 17. f3 {[%emt 0:00:00]} a5 {[%emt 0:00:00]} 18. fxe4 {[%emt 0:00:00]} Qh5 {[%emt 0:00:00]} 19. Bg3 {[%emt 0:00:00]} Kf7 {[%emt 0:06:00]} 20. e5 {[%emt 0:00:00]} f5 {[%emt 0:00:00]} 21. e4 {[%emt 0:07:00]} g6 {[%emt 0:01:00]} 22. exf5 {[%emt 0:00:00]} gxf5 {[%emt 0:00:00]} 23. Rf4 {[%emt 0:01:00]} Qg5 {[%emt 0:00:00]} 24. Rcf1 {[%emt 0:00:00]} Rg8 {[%emt 0:01:30]} 25. R1f2 {[%emt 0:00:00]} Qe7 {[%emt 0:00:00]} 26. Qf3 {[%emt 0:00:00]} Rg6 {[%emt 0:00:00]} 27. Qh5 {[%emt 0:00:00]} Kg8 {[%emt 0:00:00]} 28. Bh4 {[%emt 0:00:00]} Qf7 {[%emt 0:00:00]} 29. Qf3 {[%emt 0:00:00]} a4 {[%emt 0:00:00]} 30. Bf6 {[%emt 0:03:30]} b6 {[%emt 0:03:00]} 31. h4 {[%emt 0:00:00]} h5 {[%emt 0:00:30]} 32. Bg5 {[%emt 0:00:00]} Bb7 {[%emt 0:00:00]} 33. Qxh5 {[%emt 0:00:00]} a3 {[%emt 0:00:00]} 34. Ra2 {[%emt 0:00:00]} b5 {[%emt 0:00:00]} 35. Qd1 {[%emt 0:00:00]} bxc4 {[%emt 0:00:00]} 36. Qc1 {[%emt 0:00:00]} Qf8 {[%emt 0:02:30]} 37. Rf3 {[%emt 0:00:00]} c5 {[%emt 0:00:00]} 38. Rfxa3 {[%emt 0:04:00]} Rxa3 {[%emt 0:00:00]} 39. Qxa3 {[%emt 0:00:00]} cxd4 {[%emt 0:00:00]} 40. Qb2 {[%emt 0:00:00]} Qc8 {[%emt 0:00:00]} 41. Qxd4 {[%emt 0:01:30]} Rg7 {[%emt 0:02:30]} 42. Rc2 {[%emt 0:00:00]} Rc7 {[%emt 0:00:30]} 43. Bf6 {[%emt 0:01:00]} Be4 {[%emt 0:00:00]} 44. Rc3 {[%emt 0:00:30]} Bd3 {[%emt 0:00:00]} 45. Qe3 {[%emt 0:00:00]} Kh7 {[%emt 0:01:30]} 46. Ra3 {[%emt 0:00:00]} Qf8 {[%emt 0:00:30]} 47. Qf3 {[%emt 0:00:00]} Qxa3 {[%emt 0:00:00]} 48. Qh5+ {[%emt 0:00:00]} Kg8 {[%emt 0:00:00]} 49. Qh8+ {[%emt 0:00:00]} Kf7 {[%emt 0:00:00]} 50. Qg7+ {[%emt 0:00:00]} Ke8 {[%emt 0:00:00]} 51. Qxc7 {[%emt 0:00:00]} Qc1+ {[%emt 0:00:00]} 52. Kh2 {[%emt 0:00:00]} Qf4+ {[%emt 0:00:00]} 53. Kh1 {[%emt 0:00:00]} Qf1+ {[%emt 0:00:00]} 1/2-1/2

[Event "9th Bangabandhu Team Mixed 2021"]
[Site "Dhaka"]
[Date "2021.04.05"]
[Round "2.4"]
[White "Hamid, Rani"]
[Black "Kazi Zarin, Tasnim"]
[Result "1/2-1/2"]
[ECO "C95"]
[WhiteElo "1920"]
[BlackElo "1790"]
[Annotator "ChessBase"]
[PlyCount "148"]
[EventDate "2021.04.04"]
[EventType "team-tourn"]
[EventCountry "BAN"]
[SourceTitle "playchess.com"]
[Source "ChessBase"]
[SourceQuality "1"]
[TimeControl "5400+30"]

1. e4 {[%emt 0:01:41]} e5 {[%emt 0:00:00]} 2. Nf3 {[%emt 0:00:18]} Nc6 {[%emt 0:00:00]} 3. Bb5 {[%emt 0:00:08]} a6 {[%emt 0:00:00]} 4. Ba4 {[%emt 0:00:06]} Nf6 {[%emt 0:00:00]} 5. O-O {[%emt 0:00:12]} Be7 {[%emt 0:00:00]} 6. Re1 {[%emt 0:00:07]} b5 {[%emt 0:00:00]} 7. Bb3 {[%emt 0:00:02]} d6 {[%emt 0:00:07]} 8. c3 {[%emt 0:00:23]} O-O {[%emt 0:00:06]} 9. h3 {[%emt 0:00:09]} Nb8 {[%emt 0:00:20]} 10. d4 {[%emt 0:00:40]} Nbd7 {[%emt 0:00:06]} 11. Nbd2 {[%emt 0:01:12]} Bb7 {[%emt 0:00:19]} 12. Bc2 {[%emt 0:00:54]} Re8 {[%emt 0:00:07]} 13. Nf1 {[%emt 0:00:13]} Bf8 {[%emt 0:00:20]} 14. Ng3 {[%emt 0:00:11]} g6 {[%emt 0:00:06]} 15. a4 {[%emt 0:02:21]} Bg7 {[%emt 0:04:43]} 16. Bg5 {[%emt 0:02:33]} h6 {[%emt 0:01:17]} 17. Bd2 {[%emt 0:00:18]} d5 {[%emt 0:01:50]} 18. exd5 {[%emt 0:01:12]} exd4 {[%emt 0:05:42]} 19. Nxd4 {[%emt 0:01:59]} Bxd5 {[%emt 0:12:24]} 20. axb5 {[%emt 0:01:02]} axb5 {[%emt 0:00:14]} 21. Nxb5 {[%emt 0:03:52]} Rxe1+ {[%emt 0:04:01]} 22. Bxe1 {[%emt 0:02:06]} Rb8 {[%emt 0:02:12]} 23. Bd3 {[%emt 0:08:39]} c6 {[%emt 0:05:31]} 24. Nd4 {[%emt 0:03:18]} c5 {[%emt 0:00:35]} 25. Nde2 {[%emt 0:04:48]} c4 {[%emt 0:04:13]} 26. Bc2 {[%emt 0:00:16]} Rxb2 {[%emt 0:02:20]} 27. Nf4 {[%emt 0:03:34]} Bc6 {[%emt 0:04:23]} 28. Nge2 {[%emt 0:02:45]} Rxc2 {[%emt 0:08:41]} 29. Qxc2 {[%emt 0:00:22]} g5 {[%emt 0:00:01]} 30. Nd4 {[%emt 0:04:58]} Be4 {[%emt 0:01:22]} 31. Qd2 {[%emt 0:00:52]} gxf4 {[%emt 0:00:52]} 32. Qxf4 {[%emt 0:00:07]} Qb8 {[%emt 0:02:06]} 33. Qc1 {[%emt 0:04:14]} Nc5 {[%emt 0:03:11]} 34. f3 {[%emt 0:01:31]} Nb3 {[%emt 0:02:56]} 35. Qb2 {[%emt 0:00:37]} Bd5 {[%emt 0:05:47]} 36. Bf2 {[%emt 0:05:41]} Qb7 {[%emt 0:01:24]} 37. Rb1 {[%emt 0:01:56]} Qd7 {[%emt 0:09:29]} 38. Ne2 {[%emt 0:01:18]} Qf5 {[%emt 0:01:22]} 39. Rd1 {[%emt 0:00:40]} Be6 {[%emt 0:01:33]} 40. Ng3 {[%emt 0:02:19]} Qa5 {[%emt 0:01:22]} 41. Ne2 {[%emt 0:03:08]} Nd5 {[%emt 0:00:31]} 42. Bd4 {[%emt 0:10:29]} Nxd4 {[%emt 0:01:35]} 43. cxd4 {[%emt 0:00:08]} Qb4 {[%emt 0:01:32]} 44. Qxb4 {[%emt 0:02:59]} Nxb4 {[%emt 0:00:02]} 45. g4 {[%emt 0:00:16]} Nd3 {[%emt 0:04:51]} 46. Kf1 {[%emt 0:01:47]} h5 {[%emt 0:00:51]} 47. Rb1 {[%emt 0:02:06]} hxg4 {[%emt 0:01:49]} 48. hxg4 {[%emt 0:00:13]} f5 {[%emt 0:01:46]} 49. Rb6 {[%emt 0:02:43]} Kf7 {[%emt 0:00:51]} 50. Rb7+ {[%emt 0:00:35]} Kf8 {[%emt 0:03:21]} 51. Rb8+ {[%emt 0:01:27]} Kf7 {[%emt 0:00:11]} 52. Rb7+ {[%emt 0:01:07]} Kg8 {[%emt 0:00:11]} 53. Rb8+ {[%emt 0:02:15]} Bf8 {[%emt 0:01:06]} 54. gxf5 {[%emt 0:03:38]} Bxf5 {[%emt 0:00:43]} 55. Kg2 {[%emt 0:03:18]} Kf7 {[%emt 0:00:26]} 56. Rb7+ {[%emt 0:00:40]} Ke6 {[%emt 0:01:44]} 57. Rc7 {[%emt 0:01:08]} Ne1+ {[%emt 0:01:50]} 58. Kf2 {[%emt 0:00:13]} Nd3+ {[%emt 0:00:04]} 59. Kg1 {[%emt 0:00:57]} Nb2 {[%emt 0:01:51]} 60. Kg2 {[%emt 0:01:08]} Bd6 {[%emt 0:00:10]} 61. Rc6 {[%emt 0:01:21]} Bd3 {[%emt 0:01:11]} 62. Nc3 {[%emt 0:01:02]} Kd7 {[%emt 0:00:56]} 63. Rb6 {[%emt 0:00:06]} Ba3 {[%emt 0:00:14]} 64. f4 {[%emt 0:02:53]} Bc2 {[%emt 0:00:28]} 65. Kg3 {[%emt 0:00:34]} Na4 {[%emt 0:01:38]} 66. Nxa4 {[%emt 0:01:52]} Bxa4 {[%emt 0:00:02]} 67. Ra6 {[%emt 0:00:51]} c3 {[%emt 0:00:16]} 68. Rxa4 {[%emt 0:00:04]} c2 {[%emt 0:00:02]} 69. Rc4 {[%emt 0:00:02]} c1=Q {[%emt 0:00:05]} 70. Rxc1 {[%emt 0:00:07]} Bxc1 {[%emt 0:00:51]} 71. Kf3 {[%emt 0:00:06]} Kd6 {[%emt 0:00:24]} 72. Ke4 {[%emt 0:00:01]} Ke6 {[%emt 0:00:10]} 73. f5+ {[%emt 0:00:20]} Kd6 {[%emt 0:00:07]} 74. d5 {[%emt 0:00:17]} Bg5 {[%emt 0:00:09]} 1/2-1/2

[Event "9th Bangabandhu Team Mixed 2021"]
[Site "Dhaka"]
[Date "2021.04.05"]
[Round "2.5"]
[White "Anata, Choudhury"]
[Black "Islam, Khandaker Aminul"]
[Result "1-0"]
[ECO "C77"]
[WhiteElo "2184"]
[BlackElo "2210"]
[Annotator "ChessBase"]
[PlyCount "119"]
[EventDate "2021.04.04"]
[EventType "team-tourn"]
[EventCountry "BAN"]
[SourceTitle "playchess.com"]
[Source "ChessBase"]
[SourceQuality "1"]
[TimeControl "5400+30"]

1. e4 {[%emt 0:00:00]} e5 {[%emt 0:00:00]} 2. Nf3 {[%emt 0:00:00]} Nc6 {[%emt 0:00:00]} 3. Bb5 {[%emt 0:00:00]} a6 {[%emt 0:00:00]} 4. Ba4 {[%emt 0:00:07]} Nf6 {[%emt 0:00:00]} 5. d4 {[%emt 1:32:23]} Nxe4 {[%emt 0:03:03]} 6. dxe5 {[%emt 0:00:00]} Nc5 {[%emt 0:00:52]} 7. Bxc6 {[%emt 0:00:00]} dxc6 {[%emt 0:01:16]} 8. Qxd8+ {[%emt 0:00:00]} Kxd8 {[%emt 0:00:02]} 9. Nc3 {[%emt 0:00:00]} Bf5 {[%emt 0:00:49]} 10. Nd4 {[%emt 0:00:00]} Bg6 {[%emt 0:00:08]} 11. Be3 {[%emt 0:00:00]} Ne6 {[%emt 0:00:18]} 12. O-O-O {[%emt 0:03:30]} Ke8 {[%emt 0:01:50]} 13. Nde2 {[%emt 0:00:00]} h5 {[%emt 0:01:10]} 14. f4 {[%emt 0:00:00]} Rd8 {[%emt 0:05:12]} 15. Rxd8+ {[%emt 0:00:00]} Kxd8 {[%emt 0:02:50]} 16. Rf1 {[%emt 0:02:00]} Nc5 {[%emt 0:23:22]} 17. f5 {[%emt 0:00:00]} Bh7 {[%emt 0:00:02]} 18. Nd4 {[%emt 0:00:00]} Ke8 {[%emt 0:00:59]} 19. g3 {[%emt 0:00:00]} Nd7 {[%emt 0:01:41]} 20. e6 {[%emt 0:00:00]} Nf6 {[%emt 0:00:54]} 21. h3 {[%emt 0:00:00]} Bd6 {[%emt 0:03:28]} 22. Bf4 {[%emt 0:00:00]} c5 {[%emt 0:01:31]} 23. exf7+ {[%emt 0:00:00]} Kxf7 {[%emt 0:00:15]} 24. Nb3 {[%emt 0:00:00]} Re8 {[%emt 0:52:18]} 25. a4 {[%emt 0:04:30]} b6 {[%emt 0:00:30]} 26. a5 {[%emt 0:00:30]} b5 {[%emt 0:00:00]} 27. Bxd6 {[%emt 0:00:00]} cxd6 {[%emt 0:00:00]} 28. Rd1 {[%emt 0:01:00]} Ke7 {[%emt 0:00:00]} 29. Nd5+ {[%emt 0:00:00]} Nxd5 {[%emt 0:00:00]} 30. Rxd5 {[%emt 0:01:00]} c4 {[%emt 0:00:08]} 31. Nd4 {[%emt 0:00:30]} Kd7 {[%emt 0:02:52]} 32. f6 {[%emt 0:00:00]} gxf6 {[%emt 0:00:00]} 33. Rxh5 {[%emt 0:00:00]} Re7 {[%emt 0:00:10]} 34. Kd2 {[%emt 0:00:00]} Be4 {[%emt 0:00:21]} 35. g4 {[%emt 0:00:00]} d5 {[%emt 0:00:06]} 36. Rh6 {[%emt 0:00:00]} Rf7 {[%emt 0:00:26]} 37. Kc3 {[%emt 0:00:39]} Kd6 {[%emt 0:01:21]} 38. Kd2 {[%emt 0:02:51]} Ke5 {[%emt 0:00:15]} 39. Ke3 {[%emt 0:00:00]} Rc7 {[%emt 0:00:14]} 40. g5 {[%emt 0:00:00]} Rh7 {[%emt 0:00:38]} 41. Rxh7 {[%emt 0:01:30]} Bxh7 {[%emt 0:00:05]} 42. Nc6+ {[%emt 0:00:00]} Kf5 {[%emt 0:00:10]} 43. Nb8 {[%emt 0:00:00]} fxg5 {[%emt 0:02:14]} 44. Nxa6 {[%emt 0:00:01]} Ke5 {[%emt 0:00:00]} 45. c3 {[%emt 0:00:20]} Bf5 {[%emt 0:00:00]} 46. Nc7 {[%emt 0:00:50]} Bxh3 {[%emt 0:00:00]} 47. a6 {[%emt 0:01:49]} Bc8 {[%emt 0:00:00]} 48. a7 {[%emt 0:00:00]} Bb7 {[%emt 0:00:00]} 49. Nxb5 {[%emt 0:00:00]} g4 {[%emt 0:00:00]} 50. Nc7 {[%emt 0:01:30]} g3 {[%emt 0:00:03]} 51. a8=Q {[%emt 0:00:00]} Bxa8 {[%emt 0:00:02]} 52. Nxa8 {[%emt 0:01:00]} g2 {[%emt 0:02:30]} 53. Kf2 {[%emt 0:00:30]} Ke4 {[%emt 0:00:55]} 54. Nc7 {[%emt 0:00:00]} d4 {[%emt 0:02:00]} 55. Kxg2 {[%emt 0:00:00]} Ke3 {[%emt 0:00:00]} 56. Kf1 {[%emt 0:00:00]} dxc3 {[%emt 0:00:29]} 57. bxc3 {[%emt 0:00:05]} Kd2 {[%emt 0:00:17]} 58. Nd5 {[%emt 0:00:10]} Kd3 {[%emt 0:00:19]} 59. Ke1 {[%emt 0:00:10]} Ke4 {[%emt 0:01:25]} 60. Nb4 {[%emt 0:03:05]} 1-0

[Event "9th Bangabandhu Team Mixed 2021"]
[Site "Dhaka"]
[Date "2021.04.05"]
[Round "2.6"]
[White "Mohammad Minhaz Uddin"]
[Black "Mollah Abdullah, Al Rakib"]
[Result "1/2-1/2"]
[ECO "C50"]
[WhiteElo "2281"]
[BlackElo "2464"]
[Annotator "ChessBase"]
[PlyCount "107"]
[EventDate "2021.04.04"]
[EventType "team-tourn"]
[EventCountry "BAN"]
[SourceTitle "playchess.com"]
[Source "ChessBase"]
[SourceQuality "1"]
[TimeControl "5400+30"]

1. e4 {[%emt 0:00:00]} e5 {[%emt 0:00:01]} 2. Nf3 {[%emt 0:00:00]} Nc6 {[%emt 0:00:06]} 3. Bc4 {[%emt 0:04:57]} Be7 {[%emt 0:01:39]} 4. O-O {[%emt 0:01:23]} d6 {[%emt 0:03:14]} 5. d3 {[%emt 0:00:51]} Na5 {[%emt 0:04:38]} 6. Bb5+ {[%emt 0:05:38]} c6 {[%emt 0:00:27]} 7. Ba4 {[%emt 0:00:02]} b5 {[%emt 0:00:11]} 8. Bb3 {[%emt 0:00:03]} Nf6 {[%emt 0:10:33]} 9. Nbd2 {[%emt 0:01:48]} O-O {[%emt 0:00:29]} 10. Re1 {[%emt 0:00:25]} Re8 {[%emt 0:03:41]} 11. Nf1 {[%emt 0:00:16]} h6 {[%emt 0:01:12]} 12. Ng3 {[%emt 0:01:01]} Bf8 {[%emt 0:00:17]} 13. Bd2 {[%emt 0:01:24]} Nxb3 {[%emt 0:00:35]} 14. axb3 {[%emt 0:00:04]} a5 {[%emt 0:01:42]} 15. c4 {[%emt 0:00:46]} Bd7 {[%emt 0:04:59]} 16. Ra2 {[%emt 0:01:08]} c5 {[%emt 0:08:03]} 17. Qc2 {[%emt 0:03:58]} a4 {[%emt 0:05:29]} 18. bxa4 {[%emt 0:01:25]} bxa4 {[%emt 0:00:13]} 19. Rea1 {[%emt 0:12:49]} Bc6 {[%emt 0:06:42]} 20. Ne2 {[%emt 0:01:27]} Nd7 {[%emt 0:01:21]} 21. Nc3 {[%emt 0:00:55]} Nb6 {[%emt 0:00:26]} 22. b3 {[%emt 0:03:24]} axb3 {[%emt 0:00:26]} 23. Qxb3 {[%emt 0:00:04]} Rb8 {[%emt 0:03:14]} 24. Qc2 {[%emt 0:07:44]} Re7 {[%emt 0:01:19]} 25. Nd5 {[%emt 0:04:06]} Nxd5 {[%emt 0:00:56]} 26. cxd5 {[%emt 0:00:03]} Bb5 {[%emt 0:05:18]} 27. Ba5 {[%emt 0:00:23]} Qc8 {[%emt 0:01:09]} 28. Nd2 {[%emt 0:00:05]} f5 {[%emt 0:02:53]} 29. Nc4 {[%emt 0:04:01]} Reb7 {[%emt 0:00:58]} 30. f3 {[%emt 0:02:08]} Be7 {[%emt 0:04:53]} 31. Bd2 {[%emt 0:04:07]} fxe4 {[%emt 0:01:40]} 32. fxe4 {[%emt 0:00:14]} Bxc4 {[%emt 0:01:34]} 33. dxc4 {[%emt 0:02:24]} Qg4 {[%emt 0:01:04]} 34. Ra8 {[%emt 0:06:29]} Rxa8 {[%emt 0:01:54]} 35. Rxa8+ {[%emt 0:00:38]} Kh7 {[%emt 0:00:01]} 36. Ra1 {[%emt 0:00:21]} Bh4 {[%emt 0:01:42]} 37. Be3 {[%emt 0:00:48]} Rb4 {[%emt 0:05:03]} 38. Rf1 {[%emt 0:01:43]} Bg5 {[%emt 0:00:41]} 39. Bxg5 {[%emt 0:12:22]} Qxg5 {[%emt 0:00:04]} 40. Rf3 {[%emt 0:00:11]} Qd8 {[%emt 0:03:26]} 41. h3 {[%emt 0:04:34]} Qa5 {[%emt 0:02:00]} 42. Kh2 {[%emt 0:01:30]} Qa1 {[%emt 0:05:31]} 43. Rf7 {[%emt 0:06:06]} Rb1 {[%emt 0:02:39]} 44. Qf2 {[%emt 0:00:51]} Rh1+ {[%emt 0:00:13]} 45. Kg3 {[%emt 0:00:01]} Qe1 {[%emt 0:00:19]} 46. Qxe1 {[%emt 0:01:57]} Rxe1 {[%emt 0:00:02]} 47. Rd7 {[%emt 0:00:03]} Rxe4 {[%emt 0:00:09]} 48. Rxd6 {[%emt 0:00:02]} Rxc4 {[%emt 0:00:07]} 49. Re6 {[%emt 0:00:08]} e4 {[%emt 0:01:51]} 50. Kf4 {[%emt 0:00:49]} e3+ {[%emt 0:02:16]} 51. Kxe3 {[%emt 0:06:23]} Rd4 {[%emt 0:00:14]} 52. d6 {[%emt 0:00:08]} Kg8 {[%emt 0:00:13]} 53. Re5 {[%emt 0:00:34]} Rxd6 {[%emt 0:00:06]} 54. Ke4 {[%emt 0:02:19]} 1/2-1/2

[Event "9th Bangabandhu Team Mixed 2021"]
[Site "Dhaka"]
[Date "2021.04.05"]
[Round "2.7"]
[White "Hossain, Enamul"]
[Black "Subrota, Biswas"]
[Result "1-0"]
[ECO "D52"]
[WhiteElo "2404"]
[BlackElo "2256"]
[Annotator "ChessBase"]
[PlyCount "61"]
[EventDate "2021.04.04"]
[EventType "team-tourn"]
[EventCountry "BAN"]
[SourceTitle "playchess.com"]
[Source "ChessBase"]
[SourceQuality "1"]
[TimeControl "5400+30"]

1. d4 {[%emt 1:30:30]} d5 {[%emt 0:09:29]} 2. c4 {[%emt 0:00:00]} c6 {[%emt 0:00:08]} 3. Nf3 {[%emt 0:00:00]} Nf6 {[%emt 0:00:05]} 4. Nc3 {[%emt 0:00:00]} e6 {[%emt 1:22:18]} 5. Bg5 {[%emt 0:02:00]} Nbd7 {[%emt 0:00:00]} 6. e3 {[%emt 0:00:00]} Qa5 {[%emt 0:01:00]} 7. Nd2 {[%emt 0:01:00]} Bb4 {[%emt 0:00:00]} 8. Rc1 {[%emt 0:00:30]} Ne4 {[%emt 0:00:00]} 9. Ndxe4 {[%emt 0:00:00]} dxe4 {[%emt 0:00:00]} 10. Bh4 {[%emt 0:00:00]} Qxa2 {[%emt 0:00:00]} 11. Qc2 {[%emt 0:00:00]} Nb6 {[%emt 0:00:00]} 12. Be2 {[%emt 0:00:00]} Na4 {[%emt 0:00:00]} 13. O-O {[%emt 0:00:00]} Bxc3 {[%emt 0:00:00]} 14. bxc3 {[%emt 0:00:00]} Nxc3 {[%emt 0:00:00]} 15. Qxc3 {[%emt 0:00:00]} Qxe2 {[%emt 0:00:00]} 16. Qa3 {[%emt 0:00:00]} f6 {[%emt 0:00:00]} 17. f3 {[%emt 0:04:30]} Rf8 {[%emt 0:05:30]} 18. fxe4 {[%emt 0:00:30]} Qh5 {[%emt 0:00:00]} 19. Bg3 {[%emt 0:00:30]} Kf7 {[%emt 0:01:00]} 20. Bd6 {[%emt 0:00:30]} Rg8 {[%emt 0:00:30]} 21. Rf3 {[%emt 0:00:00]} Bd7 {[%emt 0:00:00]} 22. Rcf1 {[%emt 0:01:00]} a5 {[%emt 0:01:00]} 23. c5 {[%emt 0:00:30]} Qg4 {[%emt 0:00:00]} 24. e5 {[%emt 0:00:00]} f5 {[%emt 0:00:00]} 25. Qb3 {[%emt 0:00:00]} g6 {[%emt 0:01:30]} 26. Qxb7 {[%emt 0:00:00]} Rgd8 {[%emt 0:00:30]} 27. Bc7 {[%emt 0:02:00]} Rdc8 {[%emt 0:00:30]} 28. Bb8 {[%emt 0:00:30]} Rcxb8 {[%emt 0:00:30]} 29. Qxd7+ {[%emt 0:00:00]} Kf8 {[%emt 0:00:30]} 30. Qxh7 {[%emt 0:01:00]} a4 {[%emt 0:00:30]} 31. Qh8+ {[%emt 0:00:00]} 1-0